[Event "Hungarian Youth-ch U14 2022"]
[Site "Eger"]
[Date "2022.07.23"]
[Round "1.9"]
[White "Horvath, Greta"]
[Black "Szarvas, Nora Orsolya"]
[Result "1/2-1/2"]
[ECO "B63"]
[WhiteElo "1346"]
[BlackElo "1692"]
[Annotator "NA RC COMBH"]
[PlyCount "57"]
[EventDate "2022.07.21"]
[EventType "tourn"]
[EventCountry "HUN"]
[SourceTitle "playchess.com"]
[Source "ChessBase"]
[SourceQuality "1"]
[TimeControl "40/5400+30:1800+30"]

1. e4 {[%emt 0:00:33]} c5 {[%emt 0:00:49]} 2. Nf3 {[%emt 0:00:08]} d6 {[%emt 0:00:07]} 3. d4 {[%emt 0:00:08]} cxd4 {[%emt 0:00:08]} 4. Nxd4 {[%emt 0:00:07]} Nf6 {[%emt 0:00:06]} 5. Nc3 {[%emt 0:00:09]} Nc6 {[%emt 0:00:08]} 6. Bg5 {[%emt 0:00:21]} e6 {[%emt 0:00:18]} 7. Qd2 {[%emt 0:00:28]} Be7 {[%emt 0:00:23]} 8. Nxc6 {[%emt 0:06:19]} bxc6 {[%emt 0:00:58]} 9. O-O-O {[%emt 0:02:34]} O-O {[%emt 0:22:57]} 10. Bxf6 {[%emt 0:05:14]} Bxf6 {[%emt 0:03:12]} 11. Qxd6 {[%emt 0:07:54]} Qb6 {[%emt 0:02:16]} 12. Qg3 {[%emt 0:09:20]} Rb8 {[%emt 0:44:09]} 13. b3 {[%emt 0:07:44]} Bxc3 {[%emt 0:07:12]} 14. Qxc3 {[%emt 0:00:30]} Qxf2 {[%emt 0:00:22]} 15. Qd4 {[%emt 0:10:24]} Qf4+ {[%emt 0:01:34]} 16. Kb1 {[%emt 0:04:54]} Rb7 {[%emt 0:03:05]} 17. Bd3 {[%emt 0:06:55]} Rd7 {[%emt 0:01:25]} 18. Qc5 {[%emt 0:02:40]} Qc7 {[%emt 0:02:23]} 19. g3 {[%emt 0:04:45]} Rfd8 {[%emt 0:01:03]} 20. Be2 {[%emt 0:03:48]} h6 {[%emt 0:03:04]} 21. Rd3 {[%emt 0:02:07]} Rxd3 {[%emt 0:00:46]} 22. cxd3 {[%emt 0:04:10]} e5 {[%emt 0:00:29]} 23. Rc1 {[%emt 0:00:40]} Bd7 {[%emt 0:00:41]} 24. Rc4 {[%emt 0:04:21]} a5 {[%emt 0:02:02]} 25. Ra4 {[%emt 0:02:14]} Ra8 {[%emt 0:00:29]} 26. b4 {[%emt 0:01:41]} Qb7 {[%emt 0:01:22]} 27. Rxa5 {[%emt 0:01:19]} Rxa5 {[%emt 0:00:12]} 28. Qxa5 {[%emt 0:00:09]} Kh7 {[%emt 0:00:42]} 29. a3 {[%emt 0:00:47]} 1/2-1/2

[Event "Hungarian Youth-ch U14 2022"]
[Site "Eger"]
[Date "2022.07.23"]
[Round "1.10"]
[White "Beznicza, Mira"]
[Black "Eros, Vivien"]
[Result "1/2-1/2"]
[ECO "B26"]
[WhiteElo "1608"]
[BlackElo "1599"]
[Annotator "NA RC COMBH"]
[PlyCount "65"]
[EventDate "2022.07.21"]
[EventType "tourn"]
[EventCountry "HUN"]
[SourceTitle "playchess.com"]
[Source "ChessBase"]
[SourceQuality "1"]
[TimeControl "40/5400+30:1800+30"]

1. e4 {[%emt 0:00:36]} c5 {[%emt 0:00:33]} 2. Nc3 {[%emt 0:00:16]} Nc6 {[%emt 0:00:06]} 3. g3 {[%emt 0:00:38]} g6 {[%emt 0:00:06]} 4. Bg2 {[%emt 0:00:24]} Bg7 {[%emt 0:00:05]} 5. d3 {[%emt 0:00:12]} d6 {[%emt 0:00:05]} 6. Be3 {[%emt 0:00:19]} Nf6 {[%emt 0:00:08]} 7. h3 {[%emt 0:01:34]} Bd7 {[%emt 0:00:41]} 8. Qd2 {[%emt 0:01:15]} Nd4 {[%emt 0:06:59]} 9. Nge2 {[%emt 0:05:25]} e5 {[%emt 0:09:07]} 10. Nd1 {[%emt 0:09:56]} Nxe2 {[%emt 0:05:43]} 11. Qxe2 h5 {[%emt 0:02:35]} 12. Bg5 {[%emt 0:09:27]} Qc8 {[%emt 0:05:29]} 13. Nc3 {[%emt 0:12:31]} b5 {[%emt 0:08:41]} 14. Bxf6 {[%emt 0:07:20]} Bxf6 {[%emt 0:00:08]} 15. Nd5 {[%emt 0:00:08]} Bg7 {[%emt 0:02:09]} 16. Qf3 {[%emt 0:02:41]} Qd8 {[%emt 0:03:41]} 17. O-O {[%emt 0:02:52]} Be6 {[%emt 0:02:25]} 18. Ne3 {[%emt 0:03:18]} Qd7 {[%emt 0:03:51]} 19. Nd5 {[%emt 0:07:20]} Bxd5 {[%emt 0:01:37]} 20. exd5 {[%emt 0:00:09]} O-O {[%emt 0:00:13]} 21. g4 {[%emt 0:00:51]} hxg4 {[%emt 0:02:46]} 22. hxg4 {[%emt 0:00:44]} f5 {[%emt 0:02:46]} 23. Bh3 {[%emt 0:01:43]} Qe7 {[%emt 0:05:30]} 24. gxf5 {[%emt 0:02:26]} gxf5 {[%emt 0:00:41]} 25. Qh5 {[%emt 0:02:30]} Qf7 {[%emt 0:06:12]} 26. Qxf7+ {[%emt 0:01:37]} Rxf7 {[%emt 0:00:08]} 27. f4 {[%emt 0:00:07]} exf4 {[%emt 0:02:08]} 28. Rxf4 {[%emt 0:00:18]} Bxb2 {[%emt 0:00:22]} 29. Rb1 {[%emt 0:00:50]} Bd4+ {[%emt 0:00:07]} 30. Kg2 {[%emt 0:01:24]} Rg7+ {[%emt 0:03:00]} 31. Kh1 {[%emt 0:01:55]} Rh7 {[%emt 0:07:56]} 32. Kg2 {[%emt 0:00:19]} Rg7+ {[%emt 0:09:43]} 33. Kh1 {[%emt 0:00:38]} 1/2-1/2

[Event "Hungarian Youth-ch U14 2022"]
[Site "Eger"]
[Date "2022.07.24"]
[Round "2.1"]
[White "Szegedy, Matyas"]
[Black "Turcsanyi, Vince Gergo"]
[Result "1-0"]
[ECO "C87"]
[WhiteElo "2152"]
[BlackElo "2117"]
[Annotator "TA"]
[PlyCount "139"]
[EventDate "2022.07.21"]
[EventType "tourn"]
[EventCountry "HUN"]
[SourceTitle "playchess.com"]
[Source "ChessBase"]
[SourceQuality "1"]
[TimeControl "40/5400+30:1800+30"]

{[%evp 17,139,26,54,33,39,13,58,58,68,58,61,54,58,48,50,59,60,50,65,62,99,61,111,93,112,102,107,120,129,97,100,69,58,49,52,62,57,53,50,49,109,110,119,103,99,42,65,43,16,41,37,37,38,39,39,39,44,38,43,28,34,12,16,16,17,17,17,22,17,20,26,14,12,8,11,0,0,0,0,0,0,0,23,35,36,31,43,19,42,40,83,77,588,576,528,508,503,480,6318,6042,1812,629,29969,29970,29980,29982,29983,29977,29977,29978,29978,29977,29977,29978,29978,29979,29980,29981,29981,29981,29981,29982,29982,29983]} 1. e4 {[%emt 0:00:33]} e5 {[%emt 0:00:36]} 2. Nf3 {[%emt 0:00:06]} Nc6 {[%emt 0:00:06]} 3. Bb5 {[%emt 0:00:32]} a6 {[%emt 0:00:10]} 4. Ba4 {[%emt 0:00:07]} d6 {[%emt 0:00:06]} 5. O-O {[%emt 0:00:09]} Nf6 {[%emt 0:00:51]} 6. Re1 {[%emt 0:03:22]} Be7 {[%emt 0:02:07]} 7. c3 {[%emt 0:04:31]} O-O {[%emt 0:00:30]} 8. h3 {[%emt 0:00:59] 8.d4 might become the main line.} Re8 {[%emt 0:02:25]} 9. d4 {[%emt 0:01:11]} Bd7 {[%emt 0:00:37]} 10. d5 {[%emt 0:03:01] C87: Closed Ruy Lopez: Steinitz-type lines after 6 Re1 d6.} Nb8 {[%emt 0:01:32]} 11. c4 {[%emt 0:05:05] [#]} a5 $146 {[%emt 0:09:14]} ({Predecessor:} 11... Bxa4 12. Qxa4 Nbd7 13. Nc3 Bf8 14. Be3 a5 15. Qc2 Nh5 16. a3 Nf4 17. b4 Qf6 {0-1 (35) Kollars,D (2549)-Martirosyan,H (2597) Chess.com INT 2018}) 12. Nc3 {[%emt 0:01:34] White is slightly better.} Na6 {[%emt 0:02:32]} 13. Be3 {[%emt 0:00:15]} b6 {[%emt 0:01:07]} 14. Bc2 {[%emt 0:03:04] White is more active.} c6 {[%emt 0:19:01]} 15. Qe2 {[%emt 0:12:08]} cxd5 {[%emt 0:17:06]} 16. cxd5 {[%emt 0:01:04]} Qb8 {[%emt 0:02:38]} 17. Rec1 {[%emt 0:19:29]} Nc5 {[%emt 0:06:10]} 18. a4 {[%emt 0:19:55]} Qb7 {[%emt 0:07:25]} 19. Rab1 {[%emt 0:00:11]} Na6 {[%emt 0:08:07]} (19... Qa6 $14) 20. Bd3 {[%emt 0:00:09]} Nb4 {[%emt 0:02:47]} 21. Bb5 {[%emt 0:00:39]} Rac8 {[%emt 0:06:17]} 22. Nd2 {[%emt 0:01:35]} Bxb5 {[%emt 0:01:04]} 23. Qxb5 {[%emt 0:00:12]} Nd7 {[%emt 0:02:37]} 24. Nc4 {[%emt 0:12:31]} Rb8 $1 {[%emt 0:00:07] [#]} 25. Bxb6 $1 {[%emt 0:01:43]} Nxb6 {[%emt 0:03:51]} 26. Nxa5 {[%emt 0:00:06]} Qa8 {[%emt 0:02:25][%cal Ob6d5]} 27. Qxb4 {[%emt 0:00:16]} Nxd5 $1 {[%emt 0:00:30]} 28. Qc4 {[%emt 0:00:05]} Nxc3 {[%emt 0:01:13]} (28... Nb4 $1 $14 29. Nb3 Bg5) 29. Qxc3 $16 {[%emt 0:00:02] Hoping for Nc6.} Bg5 {[%emt 0:00:44]} 30. Rd1 {[%emt 0:01:54]} Qxe4 {[%emt 0:00:18] [#]} 31. Nc4 {[%emt 0:01:28]} ({White should play} 31. Qc4 $1 $16 {[%cal Rc4e4]} d5 32. Qxe4 dxe4 33. Nc4) 31... Be7 {[%emt 0:00:48][%cal Bg5e7,Be7b4,Bb4a5,Ba5d8][%mdl 32]} 32. a5 {[%emt 0:00:18]} d5 {[%emt 0:00:15]} 33. Nb6 {[%emt 0:00:10]} ({Don't blunder} 33. Nxe5 $2 Bb4 34. Qf3 Qxe5 $19) 33... Bb4 {[%emt 0:00:09]} 34. Qc6 {[%emt 0:00:30]} Bxa5 {[%emt 0:00:28]} 35. Nxd5 {[%emt 0:00:04]} Qg6 {[%emt 0:00:26] Against Nf6+} 36. Qc5 {[%emt 0:00:57]} Bd8 {[%emt 0:00:53]} 37. b4 {[%emt 0:00:08] Threatens to win with b5.} h6 {[%emt 0:00:27]} 38. b5 {[%emt 0:00:16] aiming for b6.} (38. Qa7 $5 {[%cal Ra7b8]} Bh4 39. Qe3 $14) 38... Bb6 {[%emt 0:00:04]} 39. Qc6 {[%emt 0:01:09]} Re6 {[%emt 0:01:14]} 40. Qd7 {[%emt 0:00:00] Strongly threatening Ne7+.} Qc2 {[%emt 0:00:00]} 41. Nxb6 {[%emt 0:03:22]} Rexb6 {[%emt 0:01:13]} 42. Rdc1 {[%emt 0:05:02]} Qg6 {[%emt 0:02:26]} (42... Qe4 {is interesting.} 43. Rb3 g6 44. Rc8+ Rxc8 45. Qxc8+ Kg7) 43. Rb2 {[%emt 0:05:28]} Qd6 {[%emt 0:21:56] Inhibits Rc5.} 44. Qxd6 {[%emt 0:00:16]} (44. Rc8+ {with more complications.} Rxc8 45. Qxc8+ Kh7 46. Qc2+) 44... Rxd6 $11 {[%emt 0:00:03][%mdl 4096] Endgame KRR-KRR} 45. Rc5 {[%emt 0:00:06]} f6 {[%emt 0:00:44][%cal Bf7f6,Bf6f5][%mdl 32]} 46. f3 {[%emt 0:00:06]} Kf7 {[%emt 0:00:10]} 47. Rc7+ {[%emt 0:00:05]} Kg6 {[%emt 0:01:54]} 48. Kf2 {[%emt 0:00:27]} Rbb6 {[%emt 0:01:43]} 49. g4 {[%emt 0:01:08]} f5 {[%emt 0:02:04]} 50. Rc5 {[%emt 0:02:39]} Kf6 {[%emt 0:01:43]} 51. Re2 {[%emt 0:00:04]} Re6 {[%emt 0:00:58]} 52. Ke3 {[%emt 0:00:19]} Red6 {[%emt 0:01:36]} 53. gxf5 {[%emt 0:00:38] Black must now prevent Rg2.} Kxf5 {[%emt 0:00:57]} 54. f4 {[%emt 0:00:07][%cal Bf3f4,Bf4e5][%mdl 32]} g5 $2 {[%emt 0:00:31][%mdl 8192] Loses the game.} (54... Rd1 $16) 55. fxe5 $18 {[%emt 0:00:58]} Re6 {[%emt 0:00:05]} 56. Rf2+ {[%emt 0:00:06]} Kg6 {[%emt 0:00:06]} 57. Ke4 {[%emt 0:00:30] And now Kd5 would win.} h5 {[%emt 0:00:26]} (57... Kh5 $142 58. Kd5 Re8) 58. Kd5 {[%emt 0:00:51] White threatens Rc6 and mate.} g4 {[%emt 0:00:21]} 59. hxg4 {[%emt 0:01:12]} (59. Rc6 $142 Rexc6 60. bxc6) 59... hxg4 {[%emt 0:00:06]} 60. Rc6 {[%emt 0:04:47] White mates.} Rexc6 {[%emt 0:00:33]} 61. bxc6 {[%emt 0:00:08] KR-KR} Rb1 {[%emt 0:00:44]} 62. c7 {[%emt 0:00:09]} Rd1+ {[%emt 0:00:23]} 63. Ke6 {[%emt 0:00:16]} Rc1 {[%emt 0:00:06]} 64. Kd7 {[%emt 0:00:15]} Rd1+ {[%emt 0:00:04]} 65. Ke7 {[%emt 0:00:08]} Rc1 {[%emt 0:00:06]} 66. Rf6+ {[%emt 0:00:44]} Kg5 {[%emt 0:00:11]} 67. Kd7 {[%emt 0:00:27]} g3 {[%emt 0:02:05]} 68. c8=Q {[%emt 0:00:50]} Rxc8 {[%emt 0:00:06]} 69. Kxc8 {[%emt 0:00:06]} g2 {[%emt 0:00:05] [#]} 70. Rf8 $1 {[%emt 0:00:02] Weighted Error Value: White=0.16 (very precise) /Black=0.40} 1-0

[Event "Hungarian Youth-ch U14 2022"]
[Site "Eger"]
[Date "2022.07.24"]
[Round "2.2"]
[White "Matyassy, Lazar"]
[Black "Szakmary, Domonkos"]
[Result "1-0"]
[ECO "B30"]
[WhiteElo "2132"]
[BlackElo "1967"]
[Annotator "TA"]
[PlyCount "139"]
[EventDate "2022.07.21"]
[EventType "tourn"]
[EventCountry "HUN"]
[SourceTitle "playchess.com"]
[Source "ChessBase"]
[SourceQuality "1"]
[TimeControl "40/5400+30:1800+30"]

{[%evp 12,139,24,17,20,35,52,54,55,53,61,41,43,31,25,35,35,29,54,23,32,17,60,72,64,43,43,49,43,50,54,45,49,44,53,44,42,40,50,53,82,77,105,110,104,79,110,103,149,156,225,216,211,196,197,139,168,156,130,42,47,57,60,0,62,0,0,0,0,-56,0,0,0,0,0,0,0,0,0,0,0,0,0,0,0,0,0,0,0,0,0,0,0,0,0,0,341,379,1222,1016,3527,2862,3308,149,2475,2390,1891,1522,1355,750,2447,1831,1543,1499,957,775,12825,12828,2358,1822,12832,12831,12831,12831,1670,1275,12841,12842,12850,12850]} 1. e4 {[%emt 0:00:42]} c5 {[%emt 0:00:44]} 2. Nf3 {[%emt 0:00:09]} Nc6 {[%emt 0:00:09]} 3. Nc3 {[%emt 0:00:04]} Nf6 {[%emt 0:00:32]} 4. Bb5 {[%emt 0:00:16]} Nd4 {[%emt 0:10:03]} 5. e5 {[%emt 0:02:21]} Nxb5 {[%emt 0:01:40]} 6. Nxb5 {[%emt 0:00:50]} Nd5 {[%emt 0:02:25]} 7. O-O {[%emt 0:00:50]} a6 {[%emt 0:03:29] B30: Sicilian: 2...Nc6 3 Bb5, lines without ...g6.} 8. Nc3 {[%emt 0:00:17]} e6 {[%emt 0:02:04]} 9. Nxd5 {[%emt 0:11:47]} exd5 {[%emt 0:00:06] White is slightly better.} 10. d4 {[%emt 0:00:05]} c4 {[%emt 0:02:42] [#]} 11. Bg5 $146 {[%emt 0:10:57]} ({Predecessor:} 11. Ng5 Be7 12. Qh5 Bxg5 13. Bxg5 Qb6 14. Qh4 O-O 15. Bf6 Kh8 16. Rae1 Rg8 17. Re3 {1-0 (37) Lazov,T (2428)-Stefanovski,D (2264) Struga 2021}) 11... Be7 {[%emt 0:03:13]} 12. Qd2 {[%emt 0:01:45]} O-O {[%emt 0:04:02]} 13. Bxe7 {[%emt 0:02:15]} Qxe7 {[%emt 0:00:28]} 14. Rfe1 {[%emt 0:00:06]} b5 {[%emt 0:04:13]} 15. Qa5 {[%emt 0:01:31]} Rb8 {[%emt 0:11:34][%cal Ba8b8,Bb8b6,Bb6c6,Bc6e6][%mdl 32]} 16. a3 {[%emt 0:03:46]} f6 {[%emt 0:16:25]} 17. Qb4 {[%emt 0:02:54]} Qe6 {[%emt 0:05:54]} 18. exf6 {[%emt 0:04:17]} Qxf6 {[%emt 0:00:53]} 19. Qc5 {[%emt 0:07:02]} Kh8 {[%emt 0:05:17]} 20. Qc7 {[%emt 0:22:23]} Rb6 {[%emt 0:09:24]} 21. Re2 {[%emt 0:06:34]} Rc6 {[%emt 0:02:49]} 22. Qe5 {[%emt 0:01:55]} Re6 {[%emt 0:05:02]} 23. Qxf6 {[%emt 0:00:26]} Rexf6 {[%emt 0:00:08]} 24. Nd2 {[%emt 0:03:36]} d6 {[%emt 0:01:47]} 25. Nf1 {[%emt 0:02:28]} Rf4 {[%emt 0:04:09]} 26. c3 $1 {[%emt 0:00:51]} Re4 {[%emt 0:01:01]} 27. Rxe4 {[%emt 0:02:28]} dxe4 $16 {[%emt 0:00:03][%mdl 4096] Endgame KRB-KRN} 28. d5 {[%emt 0:00:10]} Bb7 {[%emt 0:02:32]} 29. Ne3 {[%emt 0:00:06]} Re8 {[%emt 0:00:44]} (29... g6 $142) 30. a4 {[%emt 0:01:06] Black must now prevent axb5.} h6 {[%emt 0:01:27]} (30... Ra8 $16 31. h4 h6) 31. axb5 $18 {[%emt 0:00:56]} axb5 {[%emt 0:00:06]} 32. Ra7 {[%emt 0:00:10]} Rb8 {[%emt 0:00:40]} 33. h3 {[%emt 0:01:49]} (33. h4 $18) 33... Kh7 {[%emt 0:00:22]} 34. g4 {[%emt 0:01:55]} Kg6 {[%emt 0:00:31] [#]} 35. Kg2 {[%emt 0:02:01]} (35. Ra5 $1 $16 {[%cal Ra5b5]} Bc8 36. Kg2) 35... Kf6 $14 {[%emt 0:00:23]} 36. Ra5 {[%emt 0:03:41]} Ba8 $1 {[%emt 0:00:35]} 37. Ra7 {[%emt 0:00:41] Kg3 is the strong threat.} Bb7 {[%emt 0:00:19]} 38. Nf5 {[%emt 0:00:10]} ({White should play} 38. h4 $1 $14) 38... g6 $11 {[%emt 0:01:02]} 39. Nxd6 {[%emt 0:03:13]} Bxd5 {[%emt 0:00:03]} 40. Kg3 {[%emt 0:00:00]} ({Better is} 40. Kg1 $11) 40... Ke5 {[%emt 0:00:00]} (40... Ke6 $1 $15 41. Nf7 Rf8 42. Nxh6 Rf3+ 43. Kh4 (43. Kg2 $2 e3 $19) 43... Ke5) 41. Nf7+ $1 {[%emt 0:01:46]} Bxf7 {[%emt 0:03:25]} 42. Rxf7 {[%emt 0:00:16] KR-KR} Rd8 {[%emt 0:17:23]} 43. Rb7 {[%emt 0:17:16]} Rd3+ {[%emt 0:01:53]} 44. Kg2 {[%emt 0:03:22]} Rd5 {[%emt 0:00:47]} 45. Rb6 {[%emt 0:00:40]} g5 {[%emt 0:05:59]} 46. Rb8 {[%emt 0:01:15]} Kf6 {[%emt 0:01:27]} 47. Kf1 {[%emt 0:02:26]} Rd3 {[%emt 0:03:33]} 48. Rb6+ {[%emt 0:00:12]} Kg7 {[%emt 0:00:08]} 49. Rxb5 {[%emt 0:00:14] Threatens to win with Re5.} Rxh3 {[%emt 0:00:04]} 50. Re5 {[%emt 0:04:58]} Rh1+ {[%emt 0:00:34]} 51. Ke2 {[%emt 0:01:28]} Rb1 {[%emt 0:00:12]} 52. Rxe4 {[%emt 0:00:04]} Rxb2+ {[%emt 0:00:21]} 53. Ke3 {[%emt 0:00:12]} Rc2 $2 {[%emt 0:00:18][%mdl 8192]} (53... h5 $1 $11 {and Black has nothing to worry.}) 54. Rxc4 $18 {[%emt 0:00:06]} Kf6 $2 {[%emt 0:00:34]} (54... Rc1 55. Rc6 Kf7) 55. Rc5 {[%emt 0:00:45] aiming for c4.} Ke6 {[%emt 0:01:25]} 56. f3 {[%emt 0:00:12]} Kd6 {[%emt 0:00:34]} 57. Rc8 $2 {[%emt 0:00:11]} (57. Kd3 $18 {and White stays clearly on top.} Rf2 58. Rf5) 57... Ke5 $2 {[%emt 0:00:09][%mdl 8192] This move loses the game for Black.} (57... Ke6 $16 58. Kd3 Rf2) 58. Kd3 {[%emt 0:00:29] White is clearly winning.} Rf2 {[%emt 0:00:26]} 59. Rf8 {[%emt 0:00:09]} Rf1 {[%emt 0:00:21]} 60. Rf5+ {[%emt 0:00:07]} Ke6 {[%emt 0:00:09]} 61. Kd4 {[%emt 0:00:47] And now c4 would win.} Rd1+ {[%emt 0:00:18]} 62. Kc5 {[%emt 0:00:32]} Rd8 {[%emt 0:00:11] [#]} 63. c4 $1 {[%emt 0:00:37] Strongly threatening Kb6.} Rc8+ {[%emt 0:00:19]} 64. Kd4 {[%emt 0:01:07]} Rd8+ {[%emt 0:00:03]} 65. Rd5 {[%emt 0:00:19]} Rf8 {[%emt 0:00:02]} 66. Re5+ {[%emt 0:00:10]} Kd7 {[%emt 0:00:10]} 67. Rf5 {[%emt 0:00:50]} Rh8 {[%emt 0:00:22]} 68. Kd5 {[%emt 0:02:47]} h5 {[%emt 0:00:13]} 69. gxh5 {[%emt 0:00:21]} Rxh5 {[%emt 0:00:05]} 70. f4 {[%emt 0:00:06] Weighted Error Value: White=0.27 (precise) /Black=0.20 (precise)} 1-0

[Event "Hungarian Youth-ch U14 2022"]
[Site "Eger"]
[Date "2022.07.24"]
[Round "2.3"]
[White "Csernyik, Mark"]
[Black "Kolimar, Kristof Pal"]
[Result "1/2-1/2"]
[ECO "B43"]
[WhiteElo "2022"]
[BlackElo "2160"]
[Annotator "TA"]
[PlyCount "54"]
[EventDate "2022.07.21"]
[EventType "tourn"]
[EventCountry "HUN"]
[SourceTitle "playchess.com"]
[Source "ChessBase"]
[SourceQuality "1"]
[TimeControl "40/5400+30:1800+30"]

{[%evp 16,54,0,-6,0,-21,-18,-20,-14,-14,-19,-46,0,-1,0,0,0,-1,-9,0,0,-35,-26,-25,-15,-29,-20,-46,-46,-43,-43,-41,-27,-131,0,0,34,31,34,35,37]} 1. e4 {[%emt 0:01:07]} c5 {[%emt 0:00:35]} 2. Nf3 {[%emt 0:00:06]} e6 {[%emt 0:00:05]} 3. d4 {[%emt 0:00:12]} cxd4 {[%emt 0:00:01]} 4. Nxd4 {[%emt 0:00:03]} a6 {[%emt 0:00:01]} 5. Nc3 {[%emt 0:00:02]} b5 {[%emt 0:00:03]} 6. Be3 {[%emt 0:08:04]} Bb7 {[%emt 0:00:03]} 7. Bd3 {[%emt 0:03:48]} d6 {[%emt 0:00:03]} 8. O-O {[%emt 0:00:54]} Nf6 {[%emt 0:00:08]} 9. a3 {[%emt 0:02:05]} Nbd7 {[%emt 0:00:11] B42: Sicilian: Kan Variation: 5 Bd3.} 10. f3 {[%emt 0:01:49]} Be7 {[%emt 0:00:43]} 11. Qe2 {[%emt 0:00:53]} O-O {[%emt 0:00:34] The position is equal.} 12. Rad1 {[%emt 0:01:26]} Rc8 {[%emt 0:02:22] [#]} 13. Rf2 $146 {[%emt 0:07:55]} ({Predecessor:} 13. f4 Rxc3 14. bxc3 Nxe4 15. Bxe4 Bxe4 16. Qg4 f5 17. Qh3 Rf6 18. Rd2 Rh6 19. Nxe6 Rxh3 20. Nxd8 Rxe3 {0-1 (25) Cetinkaya,E (1828)-Erdogdu,M (2434) Antalya 2008}) 13... d5 {[%emt 0:11:23]} 14. exd5 {[%emt 0:07:53]} Nxd5 {[%emt 0:00:12]} 15. Nxd5 {[%emt 0:00:57]} Bxd5 {[%emt 0:00:03]} 16. a4 {[%emt 0:01:58]} Nc5 {[%emt 0:28:14]} 17. axb5 {[%emt 0:03:25] [#] Strongly threatening Nc6.} Nxd3 {[%emt 0:00:02]} 18. cxd3 {[%emt 0:02:49]} axb5 {[%emt 0:13:12]} (18... Qa5 {seems wilder.} 19. Qe1 Bb4 20. Bd2 Bxd2 21. Qxd2 Qa4) 19. Nxb5 {[%emt 0:02:24]} Bb3 {[%emt 0:00:10] This bishop pair is nice.} 20. Re1 {[%emt 0:09:35]} Bf6 {[%emt 0:12:38][%mdl 1024] Black has compensation.} 21. Na3 {[%emt 0:05:35]} Qd5 {[%emt 0:00:34]} 22. Qf1 {[%emt 0:03:43]} Rfd8 {[%emt 0:13:42]} 23. Rd2 {[%emt 0:00:15]} Be7 {[%emt 0:00:33] White must now prevent ...Bb4.} 24. Nc4 {[%emt 0:03:40] [#]} (24. Nb1 $1 $11) 24... Bb4 {[%emt 0:10:17]} (24... Qf5 $1 $17 {...Bb4 is the strong threat.} 25. g4 Qg6) 25. Nb6 $1 $11 {[%emt 0:02:25][%csl LRc8,LRd5]} Qb7 {[%emt 0:00:06]} (25... Qa5 $5 {[%cal Rb4d2]} 26. Nxc8 Bxd2 $11) 26. Nxc8 {[%emt 0:00:37]} Bxd2 {[%emt 0:00:12]} 27. Bxd2 {[%emt 0:00:11]} Rxc8 {[%emt 0:00:02] Weighted Error Value: White=0.17 (very precise) /Black=0.18 (very precise)} 1/2-1/2